Cogmind - Beta 9.1 @@@ ROGUE MODE // 2019.11.03 @ 19:27:09 Player: Alexbot Result: Destroyed by G-73 Enforcer with Phase Gun Performance ------------- Evolutions (9) 4500 Regions Visited (26) 5200 Robots Destroyed (399) 1995 Value Destroyed (19611) 19611 Prototype IDs (60) 1200 Alien Tech Used (2) 400 Bonus (11927) 11927 TOTAL SCORE: 44833 Bonus ------- High Alert Combat Kills 5673 Follower Combat Kills 2462 Entered Garrisons 400 Used RIF Installer 1000 Network Hubs Disabled 400 Aligned with FarCom 300 Met Zhirov 300 Built Enhanced Grunts 300 A7 Reached Mainframe 300 Met R17 at Cetus 500 Met R17 at Research 2000 Friendly Fire -1708 Cogmind --------- Core Integrity 0/1600 Matter 295/300 Energy 98/100 System Corruption 35% Temperature Cool (9) Location -1/Access Parts ------- Power (3) Propulsion (8) Utility (4) Weapon (10) Inventory (4) Improved Energy Well (600) Improved Transmission Jammer Relay Coupler [NC] (22) Peak State ------------ Power Micro Fission Core Light Quantum Reactor Reinforced Quantum Reactor Propulsion Biometal Medium Treads Advanced Heavy Treads Biometal Leg Biometal Leg Biometal Leg Improved Antigrav System Improved Antigrav System Utility Experimental Cooling System Large Storage Unit High-capacity Storage Unit Advanced Terrain Scan Processor Weapon Gamma Rifle Gamma Rifle Gamma Rifle Gamma Rifle Gamma Rifle Heavy Machine Gun KE Penetrator KE Penetrator Plasma Lance Plasma Lance Inventory Myomer Leg Centrium Wheel Advanced Cooling System Improved Energy Well Matter Compressor Long-range Terrain Scanner Recoil Nullifier Particle Accelerator Advanced Kinecellerator Overload Amplifier Improved Transmission Jammer EM Dispersion Field Advanced Hardlight Generator Experimental Force Field Relay Coupler [NC] Improved System Restoration Module Gamma Rifle Advanced Variable Charge Gun [Rating: 190] Favorites ----------- Power Light Antimatter Reactor Engine Improved Ion Engine Power Core Micro Fission Core Reactor Light Antimatter Reactor Propulsion Myomer Leg Treads Biometal Heavy Treads Leg Myomer Leg Wheel Wheel Hover Unit Combat Airjet Flight Unit Flight Unit Utility Large Storage Unit Device Advanced Heat Sink Storage Large Storage Unit Processor Advanced Terrain Scan Processor Hackware Hacking Suite Protection Medium Armor Plating Weapon Heavy Machine Gun Energy Gun Gamma Rifle Energy Cannon EMDS Ballistic Gun Heavy Machine Gun Ballistic Cannon Heavy Flak Cannon Launcher Precision Rocket Launcher Special Weapon Advanced Remote Datajack Slashing Weapon Power Sword Piercing Weapon Plasma Lance Build | -11 -10 -9 -9 -9 -8 -8 -8 -8 -8 -6 -6 -6 -6 -6 -5 -5 -5 -5 -4 -4 -3 -3 -3 -2 -2 -1 ------- Run | Scr Mat Mat Min Exi Min Mat Sto Gar Rec Fac Ext Cet Arc Hub Fac Upp Upp Zhi Pro Fac Res Arm Lab Res Gar Acc Slots Evolved 18 | . . 2 . . . 2 . . . 4 . . . . 2 . . . . 2 2 . . 2 . 2 Power 2 | . . . . . . . . . . 1 . . . . . . . . . 1 . . . . . . Propulsion 6 | . . . . . . . . . . . . . . . 2 . . . . 1 1 . . . . 2 Utility 2 | . . 2 . . . . . . . . . . . . . . . . . . . . . . . . Weapon 8 | . . . . . . 2 . . . 3 . . . . . . . . . . 1 . . 2 . . Parts Attached 410 | 6 8 3 7 2 2 2 15 12 2 25 11 9 2 18 7 3 12 13 . 20 34 18 . 39 28 112 Power 41 | 1 2 . 1 . . . 1 . . 5 1 2 . 3 . . 2 1 . 2 4 2 . 2 2 10 Engine 14 | 1 2 . 1 . . . 1 . . 5 1 . . 1 . . 2 . . . . . . . . . Core 3 | . . . . . . . . . . . . . . . . . . . . 1 . . . 1 . 1 Reactor 24 | . . . . . . . . . . . . 2 . 2 . . . 1 . 1 4 2 . 1 2 9 Propulsion 83 | 2 2 1 2 . 2 . 3 . 1 2 2 2 . 1 3 . 2 5 . 2 13 5 . 2 8 23 Treads 30 | . 1 1 . . . . 2 . 1 . 2 2 . 1 1 . 1 1 . . 6 4 . 1 2 4 Leg 29 | . . . . . 1 . 1 . . . . . . . . . . . . . 6 . . . 6 15 Wheel 11 | 2 1 . . . 1 . . . . 2 . . . . . . . . . . 1 1 . 1 . 2 Hover 11 | . . . . . . . . . . . . . . . 2 . 1 4 . 2 . . . . . 2 Flight 2 | . . . 2 . . . . . . . . . . . . . . . . . . . . . . . Utility 134 | 1 2 2 2 2 . 2 4 2 . 5 1 2 . 7 1 1 3 5 . 5 8 9 . 25 6 39 Device 102 | . 1 . 1 . . . . . . 2 1 1 . 4 1 1 1 5 . 2 7 9 . 23 5 38 Storage 14 | 1 1 . . 2 . 2 . . . 1 . . . 2 . . . . . 2 1 . . 2 . . Processor 3 | . . . . . . . . . . . . . . 1 . . 2 . . . . . . . . . Hackware 4 | . . 1 . . . . . . . 1 . . . . . . . . . 1 . . . . 1 . Protection 11 | . . 1 1 . . . 4 2 . 1 . 1 . . . . . . . . . . . . . 1 Artifact . | . . . . . . . . . . . . . . . . . . . . . . . . . . . Weapon 152 | 2 2 . 2 . . . 7 10 1 13 7 3 2 7 3 2 5 2 . 11 9 2 . 10 12 40 Energy Gun 31 | . 2 . . . . . . 1 . . 1 . . . . . 2 . . 1 1 . . 4 5 14 Energy Cannon 4 | . . . . . . . . . . . . . . . 1 1 . . . 1 . . . . 1 . Ballistic Gun 89 | 2 . . 2 . . . 5 6 . 8 4 2 2 4 2 1 2 2 . 7 7 2 . 5 3 23 Ballistic Cannon 5 | . . . . . . . . . . . 1 . . . . . . . . 1 . . . . 2 1 Launcher 6 | . . . . . . . . 1 1 1 . 1 . 2 . . . . . . . . . . . . Special Weapon 5 | . . . . . . . . . . 2 . . . . . . . . . . 1 . . 1 1 . Impact Weapon . | . . . . . . . . . . . . . . . . . . . . . . . . . . . Slashing Weapon 10 | . . . . . . . 2 2 . 2 1 . . 1 . . 1 . . 1 . . . . . . Piercing Weapon 2 | . . . . . . . . . . . . . . . . . . . . . . . . . . 2 Special Melee Weapon . | . . . . . . . . . . . . . . . . . . . . . . . . . . . Unidentified Prototypes 27 | . . . . . . . 1 . . . 1 3 . 7 1 . 1 4 . 1 1 1 . 4 . 2 Parts Lost 166 | . 6 4 . . . . 6 5 1 7 5 1 . 7 4 1 15 . . 3 11 . . 5 16 69 Power 22 | . 2 1 . . . . 1 . . 2 . . . . . . 4 . . . 1 . . 1 1 9 Propulsion 40 | . 1 2 . . . . 1 . 1 2 1 . . 1 . . 4 . . 2 2 . . 1 2 20 Utility 17 | . . . . . . . 2 2 . 2 . . . 2 . . 1 . . . 1 . . . . 7 Weapon 87 | . 3 1 . . . . 2 3 . 1 4 1 . 4 4 1 6 . . 1 7 . . 3 13 33 Highest Loss Streak 34 | . 4 4 . . . . 4 1 1 2 3 1 . 3 2 1 8 . . 2 5 . . 2 7 34 Average Slot Usage (%) 85 | . 90 53 61 98 100 81 96 99 100 96 97 93 93 85 89 87 54 50 70 84 90 85 85 79 82 81 Engine 3 | . 13 7 8 11 11 9 8 9 9 12 12 6 . 2 . . 1 . . . . . . . . . Reactor 6 | . . . . . . . . . . . . 5 13 10 11 11 2 3 5 5 11 14 14 12 9 7 Treads 7 | . 1 9 . . . . 15 18 18 8 3 6 6 6 4 5 1 . . . 9 14 14 12 7 4 Leg 3 | . . . . . . 9 1 . . . . . . . . . . . . . 9 . . . 10 15 Wheel 2 | . 26 7 . . . 9 . . . 4 8 . . . . . . . . . . . . . . 2 Hover 3 | . . . . . . . . . . . . . . . 9 11 8 16 23 22 6 . . . . . Device 4 | . 11 9 4 11 11 9 2 . . 1 5 6 6 5 5 5 2 5 5 2 3 4 4 3 3 4 Storage 10 | . 14 9 . 9 11 10 18 18 18 13 13 13 13 13 11 11 11 11 11 9 9 9 9 8 8 7 Processor 2 | . . . . . . . . . . . . . . 1 5 5 7 5 5 5 4 4 4 4 4 2 Hackware 2 | . . 2 11 11 11 9 9 9 9 5 6 1 . . . . . . . 2 . . . . . . Protection 1 | . . 1 4 11 11 7 5 9 9 3 . 4 6 4 . . . . . . . . . . . . Energy Gun 2 | . 3 6 . . . . . 3 . . 2 . . . . . . . . 2 . . . 2 7 8 Ballistic Gun 23 | . 18 . 17 22 22 18 17 24 30 40 36 39 40 29 27 29 10 . 11 12 25 28 28 25 12 14 Slashing Weapon 3 | . . . . . . . 16 6 . 1 6 3 . 1 4 . 2 5 5 5 4 4 4 4 4 . Piercing Weapon 1 | . . . . . . . . . . . . . . . . . . . . . . . . . . 7 Naked Turns 40 | . . . . . . . . . . . . . . . . . . . . . . . . . . 40 Heaviest Build 183 | 12 25 22 7 23 15 38 56 59 60 83 83 112 114 114 102 101 100 60 57 101 110 129 129 163 183 158 Greatest Support 225 | 26 26 20 8 8 10 10 44 44 44 44 20 80 80 80 80 80 80 76 76 89 162 220 220 225 206 187 Greatest Overweight (x) 8 | . 1 5 1 2 1 3 3 1 1 8 7 3 1 1 1 1 1 1 . 1 2 . . 1 3 4 Average Overweight (x) . | . . . . . 1 1 1 1 1 2 5 1 1 . . 1 . . . . . . . . . . Largest Inventory Capacity 18 | 6 10 10 4 10 8 16 16 16 16 16 16 16 16 16 16 16 16 16 16 16 16 16 16 18 18 18 Average Capacity 15 | 4 8 9 4 8 8 9 16 16 16 16 16 16 16 16 16 16 16 16 16 15 16 16 16 17 18 17 Most Carried 18 | 4 9 6 4 7 8 10 16 16 16 16 16 16 16 16 16 16 16 16 16 16 16 16 15 18 18 18 Average Carried 15 | 2 6 5 4 5 7 7 12 15 15 15 15 15 16 15 15 15 15 15 16 15 15 15 15 16 17 16 Final Capacity 18 | 6 10 4 4 8 8 16 16 16 16 16 16 16 16 16 16 16 16 16 16 16 16 16 16 18 18 18 Final Carried 18 | 4 5 4 4 7 7 10 15 16 15 16 16 16 16 16 16 15 14 16 16 16 16 15 15 17 17 18 Class Distribution -------------------- 27% | Scavenger-Executioner 25% | Scavenger-Mutant 12% | Mutant 11% | Scavenger-Skirmisher 9% | Scavenger-Assassin 5% | Skirmisher 3% | Generator-Mutant Dominant Class ---------------- Mutant | -10/Materials Mutant | -9/Materials Scavenger-Mutant | -9/Mines Scavenger-Mutant | -9/Exiles Scavenger-Mutant | -8/Mines Scavenger-Mutant | -8/Materials Scavenger-Mutant | -8/Storage Skirmisher | -8/Garrison Mutant | -8/Recycling Executioner | -6/Factory Scavenger-Executioner | -6/Extension Scavenger-Executioner | -6/Cetus Scavenger-Executioner | -6/Archives Scavenger-Executioner | -6/Hub_04(d) Scavenger-Executioner | -5/Factory Scavenger-Executioner | -5/Upper Caves Mutant | -5/Upper Caves Mutant | -5/Zhirov Mutant | -4/Proximity Caves Generator-Mutant | -4/Factory Scavenger-Assassin | -3/Research Scavenger-Assassin | -3/Armory Scavenger-Executioner | -3/Lab Scavenger-Executioner | -2/Research Scavenger-Skirmisher | -2/Garrison Scavenger-Skirmisher | -1/Access Resources | -11 -10 -9 -9 -9 -8 -8 -8 -8 -8 -6 -6 -6 -6 -6 -5 -5 -5 -5 -4 -4 -3 -3 -3 -2 -2 -1 ----------- Run | Scr Mat Mat Min Exi Min Mat Sto Gar Rec Fac Ext Cet Arc Hub Fac Upp Upp Zhi Pro Fac Res Arm Lab Res Gar Acc Matter Collected 16556 | 260 201 . 90 . 55 . 533 466 236 1786 722 493 79 1247 1052 337 354 264 . 405 1760 257 . 2237 790 2932 Remotely . | . . . . . . . . . . . . . . . . . . . . . . . . . . . Salvage Created 21484 | . 535 12 56 . 27 . 1099 505 331 1249 789 574 268 1656 1119 513 328 455 . 801 1356 124 . 2384 1390 5913 Parts 1000 | . 29 3 8 . 6 . 75 23 23 52 24 26 15 75 36 14 18 5 . 33 59 16 . 152 32 276 Haulers Intercepted 9 | . . . . . . . 3 . . . . . . 2 . . . . . . 1 . . 2 . 1 Recyclers Shooed 9 | . . . . . . . . . 3 . 2 . . . . . . . . 1 1 . . . . 2 Parts Field Recycled . | . . . . . . . . . . . . . . . . . . . . . . . . . . . Retrieved Matter . | . . . . . . . . . . . . . . . . . . . . . . . . . . . Parts Self-Destructed 37 | . . . . . . . . . . . . . . . . 14 19 4 . . . . . . . . Prevented 4 | . . . . . . . . . . . . . . . . . 4 . . . . . . . . . Kills | -11 -10 -9 -9 -9 -8 -8 -8 -8 -8 -6 -6 -6 -6 -6 -5 -5 -5 -5 -4 -4 -3 -3 -3 -2 -2 -1 ------- Run | Scr Mat Mat Min Exi Min Mat Sto Gar Rec Fac Ext Cet Arc Hub Fac Upp Upp Zhi Pro Fac Res Arm Lab Res Gar Acc Combat Hostiles Destroyed 323 | . 11 . 3 . . . 21 21 9 24 10 10 3 23 23 12 7 . . 9 18 1 . 30 14 74 Melee 16 | . . . 2 . . . 2 . . 2 . . . . . . 1 . . 2 . . . . . 7 Guns 233 | . 9 . 1 . . . 19 12 2 19 10 6 3 18 16 12 5 . . 4 18 1 . 30 3 45 Cannons 5 | . . . . . . . . . . . . . . . . . 1 . . 1 . . . . . 3 AOE 36 | . 2 . . . . . . 9 7 3 . 4 . 5 6 . . . . . . . . . . . Classes Destroyed 20 | . 3 . 1 . 1 . 4 . 2 3 . . . 1 1 . 1 . . . . . . . 1 2 Worker 21 | . 2 . . . . . 2 . . . . . . 8 . . . . . . 2 . . 3 . 4 Builder 8 | . . . . . 1 . . . 1 1 . . . 2 . . . . . . . . . 1 . 2 Tunneler 1 | . . . . . . . . . . . . . . . . . . . . . . . . . . 1 Hauler 9 | . . . . . . . 3 . . . . . . 2 . . . . . . 1 . . 2 . 1 Recycler 13 | . . . . . . . . . 5 . 1 . . . 2 . . . . 1 1 . . 1 . 2 Mechanic 1 | . . . . . . . . . . . . . . . 1 . . . . . . . . . . . Operator 6 | . 1 1 . . . . . . . 1 . . 1 2 . . . . . . . . . . . . Drone 9 | . . . . . . . . . 9 . . . . . . . . . . . . . . . . . Watcher 12 | . . . . . . . 1 . . . . . . 1 . . . . . . 1 2 . 2 1 4 Swarmer 75 | . . . 3 . . . 6 11 . 3 2 3 . . 8 6 4 . . . 8 . . 5 . 16 Saboteur 1 | . . . . . . . . . . . . . . . . . . . . . . . . . . 1 Grunt 98 | . 11 . . . . . 4 9 . 13 6 5 . 10 7 5 . . . . 4 . . 4 8 12 Brawler 10 | . . . . . . . . . . 3 . . . . 3 . . . . . . . . . 1 3 Duelist 12 | . . . . . . . . . . 3 . . . 1 2 . . . . . . . . . . 6 Protector 2 | . . . . . . . . . . . . . . 2 . . . . . . . . . . . . Sentry 29 | . . . . . . . 10 1 . . . . 3 3 1 1 1 . . 3 1 . . 2 . 3 Specialist 1 | . . . . . . . . . . . . . . . . . . . . . . . . . 1 . Hunter 33 | . . . . . . . 1 . . . 1 . . 2 . . 1 . . 4 5 . . 2 4 13 Programmer 44 | . . . . . . . . . . 2 . . . . 2 . . . . 2 . 1 . 17 . 20 Behemoth 2 | . . . . . . . . . . . . . . . . . 1 . . . . . . . 1 . Cetus Guard 2 | . . . . . . . . . . . . 2 . . . . . . . . . . . . . . Lightning 5 | . . . . . . . . . . . . . . 5 . . . . . . . . . . . . Thug 2 | . . . . . . . . . . . 1 1 . . . . . . . . . . . . . . Savage 2 | . . . . . . . . . . . 2 . . . . . . . . . . . . . . . Butcher 1 | . . . . . . . . . . . . 1 . . . . . . . . . . . . . . Best Kill Streak 11 | . 3 1 3 . 1 . 6 7 9 5 3 4 4 11 5 7 2 . . 3 5 1 . 6 6 7 Combat Bots Only 7 | . 3 . 3 . . . 4 7 6 4 3 4 3 6 5 7 2 . . 2 5 1 . 6 6 6 Max Kills in Single Turn 8 | . 2 1 1 . 1 . 2 3 3 2 2 4 2 8 4 2 1 . . 1 2 1 . 2 1 2 Gunslinging 2 | . . . . . . . 1 2 . . . . . 1 . 1 . . . . 1 . . . . 1 Exploded 4 | . 2 . . . . . . 2 2 2 . 4 . 1 3 . . . . . . . . . . . Melee 1 | . . . 1 . . . 1 . . 1 . . . . . . 1 . . 1 . . . . . 1 Uniques/NPCs Destroyed . | . . . . . . . . . . . . . . . . . . . . . . . . . . . Combat | -11 -10 -9 -9 -9 -8 -8 -8 -8 -8 -6 -6 -6 -6 -6 -5 -5 -5 -5 -4 -4 -3 -3 -3 -2 -2 -1 -------- Run | Scr Mat Mat Min Exi Min Mat Sto Gar Rec Fac Ext Cet Arc Hub Fac Upp Upp Zhi Pro Fac Res Arm Lab Res Gar Acc Damage Taken 32306 | . 668 661 117 . 43 . 1313 598 71 1666 796 129 23 2454 1186 650 2273 . 38 841 2666 12 . 2376 2698 11027 Core 4163 | . 194 286 93 . . . 174 76 3 126 62 9 . 97 155 57 477 . . 83 259 . . 173 225 1614 Absorbed by Shields 1795 | . . . . . . . . 15 . . . 45 . . . . . . . . 96 . . 24 114 1501 Reduced by Siege Mode 898 | . . . . . . . . . . . . 5 . 161 15 28 13 . . . . . . 314 206 156 Core Remaining (%) 57 | 100 22 . . . 5 . . . 54 . . . . 65 . . . . 31 92 . . 73 . 72 . Volleys Fired 942 | . 44 3 2 . 12 . 70 45 21 62 30 18 3 57 50 12 35 . . 23 54 5 . 70 67 259 Largest 8 | . 2 1 1 . 2 . 2 4 4 7 6 6 6 6 5 6 6 . . 5 6 6 . 8 3 5 Hottest 319 | . 85 40 20 . 40 . 46 140 100 195 206 171 181 191 155 178 218 . . 156 186 185 . 319 225 300 Shots Fired 2973 | . 77 3 2 . 24 . 136 115 45 335 167 102 18 193 174 66 71 . . 51 255 30 . 351 101 657 Gun 2877 | . 77 3 2 . 24 . 136 106 32 325 167 101 18 187 162 66 63 . . 38 255 30 . 351 93 641 Cannon 45 | . . . . . . . . . . . . . . . 5 . 8 . . 13 . . . . 4 15 Launcher 42 | . . . . . . . . 9 13 6 . 1 . 6 7 . . . . . . . . . . . Special 9 | . . . . . . . . . . 4 . . . . . . . . . . . . . . 4 1 Kinetic 2522 | . 67 . 2 . 24 . 136 99 32 325 154 101 18 187 162 66 56 . . 38 255 30 . 347 23 400 Thermal 60 | . 5 . . . . . . 7 . . 13 . . . . . 7 . . 3 . . . 4 3 18 Explosive 42 | . . . . . . . . 9 13 6 . 1 . 6 7 . . . . . . . . . . . Electromagnetic 340 | . 5 3 . . . . . . . . . . . . 5 . 8 . . 10 . . . . 71 238 Robot Hit Streak 45 | . 12 1 1 . 7 . 13 17 4 8 9 22 7 16 24 33 45 . . 7 9 7 . 21 23 14 Robot Miss Streak 12 | . 9 2 1 . 4 . 2 3 7 5 12 2 1 3 4 1 4 . . 4 7 2 . 4 3 9 Penetration Max 2 | . . . . . . . . . . . 1 1 1 1 1 . 1 . . 1 1 . . 1 . 2 Secondary Targets 54 | . . . . . . . 2 3 . 5 2 4 1 5 3 8 1 . . . 6 . . 3 2 9 Max Gunslinging Chain 2 | . . . . . . . 1 2 . 1 1 1 1 1 1 1 1 . . . 2 . . 1 1 2 Shots Hit Robots 1883 | . 46 1 1 . 14 . 109 64 13 190 85 81 12 125 118 55 59 8 . 46 120 12 . 229 83 412 Core Hits 811 | . 29 1 6 . 3 . 45 32 16 62 42 28 8 78 54 23 13 6 . 18 51 6 . 87 32 171 Critical Hits 74 | . 1 . . . . . 4 1 . 2 . 4 2 14 1 . 8 . . 3 7 2 . 4 1 20 Critical Kills 27 | . 1 . . . . . 1 . . . . 1 2 7 . . 1 . . 2 2 2 . 1 1 6 Critical Parts Destroyed 44 | . . . . . . . 3 1 . 2 . 3 . 7 1 . 5 . . . 5 . . 3 . 14 Melee Attacks 169 | . . . . . . . 23 1 . 12 18 . . . 3 . 12 8 3 15 4 7 . . 4 59 Impact . | . . . . . . . . . . . . . . . . . . . . . . . . . . . Slashing 113 | . . . . . . . 23 1 . 12 18 . . . 3 . 12 8 3 15 4 7 . . 4 3 Piercing 56 | . . . . . . . . . . . . . . . . . . . . . . . . . . 56 Sneak Attacks 10 | . . . . . . . 2 . . . . . . . . . . . . 1 1 . . . 2 4 Combat Hostiles . | . . . . . . . . . . . . . . . . . . . . . . . . . . . Follow-up Attacks 6 | . . . . . . . 2 . . . . . . . . . . . . . . . . . . 4 Damage Inflicted 51546 | . 682 67 36 . 98 . 1911 1899 966 3432 1892 1889 288 4853 4099 1067 1318 1014 . 1604 3004 261 . 5539 2366 13261 Guns 38552 | . 610 27 8 . 98 . 1462 1037 83 2912 1857 1598 288 2854 2089 1067 759 . . 657 2861 261 . 5374 1738 10912 Cannons 1593 | . . . . . . . . . . . . . . . 283 . 302 . . 428 . . . . 86 494 Explosions 6544 | . 72 40 . . . . . 862 883 295 . 291 . 1999 1727 . . . . . . . . 145 230 . Melee 4772 | . . . . . . . 449 . . 225 35 . . . . . 257 1014 . 519 138 . . . 312 1823 Ramming 85 | . . . 28 . . . . . . . . . . . . . . . . . 5 . . 20 . 32 Kinetic 32585 | . 467 . 8 . 98 . 1462 1006 83 2912 1702 1598 288 2854 2089 1067 648 . . 657 2861 261 . 5318 312 6894 Thermal 1802 | . 148 40 . . . . . 31 . . 155 . . 100 356 . 111 . . 75 . . . 56 230 500 Explosive 4810 | . . . . . . . . 862 883 295 . 291 . 963 1371 . . . . . . . . 145 . . Electromagnetic 7492 | . 67 27 . . . . . . . . . . . 936 283 . 302 . . 353 . . . . 1512 4012 Impact . | . . . . . . . . . . . . . . . . . . . . . . . . . . . Slashing 3187 | . . . . . . . 449 . . 225 35 . . . . . 257 1014 . 519 138 . . . 312 238 Piercing 1585 | . . . . . . . . . . . . . . . . . . . . . . . . . . 1585 Highest Corruption 35 | . . . . . . . . . . 1 2 2 2 23 6 4 2 2 . 1 . . . 4 3 35 Average Corruption 7 | . . . . . . . . . . 1 1 2 2 9 5 3 2 1 . 1 . . . 3 3 20 Corruption Purged 13 | . . . . . . . . . . . . . . . 2 2 . 2 . . . . . 5 . 2 Effects 448 | . . . . . . . . . . . 17 9 2 44 22 19 4 3 . 1 . . . 38 19 270 Message Errors 63 | . . . . . . . . . . . 4 2 1 7 3 8 . . . . . . . 10 4 24 Matter Fused 47 | . . . . . . . . . . . . . . 7 4 3 . . . . . . . 6 4 23 Heat Flow Errors 29 | . . . . . . . . . . . 2 2 1 5 . 2 1 . . . . . . 4 1 11 Energy Discharges 32 | . . . . . . . . . . . 4 1 . 3 2 2 1 3 . . . . . 2 4 10 Parts Rejected 4 | . . . . . . . . . . . . . . . 1 . . . . . . . . . . 3 Data Loss (minor) 25 | . . . . . . . . . . . 2 . . 1 1 1 . . . . . . . 2 3 15 Data Loss (major) 8 | . . . . . . . . . . . . . . . . . . . . . . . . . . 8 Misfires 6 | . . . . . . . . . . . . . . . . . . . . . . . . . . 6 Alerts 3 | . . . . . . . . . . . . . . 1 . . . . . . . . . . . 2 Misdirections 18 | . . . . . . . . . . . . . . 3 . . . . . . . . . . . 15 Targeting Errors 175 | . . . . . . . . . . . 5 4 . 10 7 3 2 . . . . . . 10 3 131 Weapon Failures 38 | . . . . . . . . . . . . . . 7 4 . . . . 1 . . . 4 . 22 Overload Shots . | . . . . . . . . . . . . . . . . . . . . . . . . . . . Overflow Damage 826 | . . 8 . . . . 65 6 68 31 . . . 205 47 . 17 133 . 42 103 . . . 37 64 Projectiles 50 | . . . . . . . . . . . . . . . . . . . . . . . . . . 50 Explosions 402 | . . 8 . . . . . 6 68 31 . . . 205 47 . . . . . . . . . 37 . Melee 374 | . . . . . . . 65 . . . . . . . . . 17 133 . 42 103 . . . . 14 Knockbacks 4 | . . . . . . . . . . . . . . . . . . . . . . . . . 1 3 Impact . | . . . . . . . . . . . . . . . . . . . . . . . . . . . Kinetic 4 | . . . . . . . . . . . . . . . . . . . . . . . . . 1 3 Secondary . | . . . . . . . . . . . . . . . . . . . . . . . . . . . Self-Inflicted Damage 672 | . 4 37 13 . . . . . 73 25 . . . 160 55 . . . . . . . . 195 110 . Shots 16 | . 1 1 . . . . . . 5 1 . . . 2 2 . . . . . . . . 2 2 . Rammed 12 | . . . 8 . . . . . . . . . . . . . . . . . 1 . . 1 . 2 Targets Rammed 14 | . . . 8 . . . . . . . . . . . . . . . . . 1 . . 1 . 4 Kicked 2 | . . . . . . . . . . . . . . . . . . . . . . . . . . 2 Crushed . | . . . . . . . . . . . . . . . . . . . . . . . . . . . Highest Temperature 580 | . 28 . . . . . 12 356 340 411 264 401 195 561 105 242 221 . . 273 394 117 . 580 281 394 Average Temperature 122 | . 12 . . . . . 3 104 123 185 112 123 60 132 26 84 95 . . 74 105 63 . 157 84 132 Received Heat Transfer 4402 | . 279 243 . . 27 . 396 270 . 573 165 35 . 348 180 153 492 . . 72 90 . . 99 319 661 Effects 48 | . . . . . . . . 1 . 7 . 1 . 11 . . . . . 2 . . . 13 2 11 Shutdowns 10 | . . . . . . . . . . 1 . . . 2 . . . . . . . . . 3 . 4 Energy Bleed 10 | . . . . . . . . . . . . 1 . 1 . . . . . . . . . 4 . 4 Interference 19 | . . . . . . . . . . 6 . . . 5 . . . . . 2 . . . 3 2 1 Matter Decay 2 | . . . . . . . . . . . . . . . . . . . . . . . . 1 . 1 Short Circuit 3 | . . . . . . . . . . . . . . 2 . . . . . . . . . . . 1 Damage (minor) 3 | . . . . . . . . 1 . . . . . 1 . . . . . . . . . 1 . . Damage (major) 1 | . . . . . . . . . . . . . . . . . . . . . . . . 1 . . Siege Activations 38 | . . . . . . . . . . . . 3 . 6 4 2 2 . . . . 1 . 10 3 7 Total Turns 745 | . . . . . . . . . . . . 34 . 134 45 34 21 . . . . 10 . 202 85 180 Longest Duration 70 | . . . . . . . . . . . . 26 . 70 15 26 20 . . . . 10 . 33 54 56 Robots Corrupted 34 | . . . . . . . . . . . . . . 1 1 . . . . 2 . . . . 11 19 Combat Hostiles 33 | . . . . . . . . . . . . . . . 1 . . . . 2 . . . . 11 19 Parts Fried 62 | . 1 . . . . . . . . . . 2 . 4 1 . 4 . . . . . . . 11 39 Impact Corruptions . | . . . . . . . . . . . . . . . . . . . . . . . . . . . Robots Melted . | . . . . . . . . . . . . . . . . . . . . . . . . . . . Combat Hostiles . | . . . . . . . . . . . . . . . . . . . . . . . . . . . Parts Melted 2 | . . . . . . . . . . . 2 . . . . . . . . . . . . . . . Heat Transferred 2108 | . 285 50 . . . . . 74 . . 333 . . 100 350 . 148 . . 100 . . . 74 150 444 Parts Sabotaged . | . . . . . . . . . . . . . . . . . . . . . . . . . . . Parts Stolen . | . . . . . . . . . . . . . . . . . . . . . . . . . . . Parts Stripped . | . . . . . . . . . . . . . . . . . . . . . . . . . . . Power Chain Reactions 7 | . 1 1 . . . . . . . . . . . 3 . . . . . . . . . . 2 . Missiles Intercepted . | . . . . . . . . . . . . . . . . . . . . . . . . . . . Alert | -11 -10 -9 -9 -9 -8 -8 -8 -8 -8 -6 -6 -6 -6 -6 -5 -5 -5 -5 -4 -4 -3 -3 -3 -2 -2 -1 ------- Run | Scr Mat Mat Min Exi Min Mat Sto Gar Rec Fac Ext Cet Arc Hub Fac Upp Upp Zhi Pro Fac Res Arm Lab Res Gar Acc Peak Influence 1460 | . 315 102 97 . 82 31 386 934 672 1182 861 565 380 1333 1016 . . . . 256 380 140 . 842 870 1460 Average Influence 508 | . 154 72 89 . 76 31 137 605 522 791 596 293 322 745 665 . . . . 93 168 64 . 343 758 892 Maximum Alert Level 4 | . 1 . . . . . 1 3 2 4 3 2 1 4 3 . . . . 1 1 . . 3 3 4 Low Security (%) 28 | . . . . . . . . . . . . . . . . . . . . . . . . . . . Level 1 12 | . . . . . . . . . . . . . . . . . . . . . . . . . . . Level 2 28 | . . . . . . . . . . . . . . . . . . . . . . . . . . . Level 3 22 | . . . . . . . . . . . . . . . . . . . . . . . . . . . Level 4 7 | . . . . . . . . . . . . . . . . . . . . . . . . . . . Level 5 . | . . . . . . . . . . . . . . . . . . . . . . . . . . . High Security . | . . . . . . . . . . . . . . . . . . . . . . . . . . . Max Security . | . . . . . . . . . . . . . . . . . . . . . . . . . . . Squads Dispatched 66 | . 4 2 . . . . 3 . . 7 2 . . 8 5 . . . . 5 7 1 . 5 . 17 Investigation 9 | . 1 . . . . . . . . 1 1 . . 2 . . . . . 1 2 . . 1 . . Extermination 17 | . . . . . . . . . . 2 . . . 1 1 . . . . 2 . 1 . 3 . 7 Reinforcement 22 | . 3 2 . . . . . . . 1 . . . 2 1 . . . . 2 5 . . 1 . 5 Assault 14 | . . . . . . . . . . 3 1 . . 2 3 . . . . . . . . . . 5 Garrison 4 | . . . . . . . 3 . . . . . . 1 . . . . . . . . . . . . Intercept . | . . . . . . . . . . . . . . . . . . . . . . . . . . . Construction Impeded 7 | . . . . . . . . . . . . . . . 1 . . . . 1 1 . . . . 4 Haulers Reinforced 4 | . . . . . . . . . . . . . . 1 . . . . . . 1 . . 1 . 1 Stealth | -11 -10 -9 -9 -9 -8 -8 -8 -8 -8 -6 -6 -6 -6 -6 -5 -5 -5 -5 -4 -4 -3 -3 -3 -2 -2 -1 --------- Run | Scr Mat Mat Min Exi Min Mat Sto Gar Rec Fac Ext Cet Arc Hub Fac Upp Upp Zhi Pro Fac Res Arm Lab Res Gar Acc Distress Signals 30 | . 1 . . . . . 3 . . . 4 2 . 5 . . . . . . 11 . . . . 4 Communications Jammed 10 | . . . . . . . . . . . . . . . . . . . . . . 10 . . . . Distress Signals 10 | . . . . . . . . . . . . . . . . . . . . . . 10 . . . . Times Spotted 566 | . 19 13 3 . 3 1 26 23 13 39 28 27 4 45 34 12 26 . 1 13 33 3 . 37 24 139 Peak Tracking Total 12 | . 5 12 3 . 3 1 6 5 4 5 6 8 1 7 7 7 9 . 2 3 10 1 . 5 6 12 Tactical Retreats 50 | . . . . . . . 1 5 . 2 3 . . . 2 . 8 . 1 . 1 . . 1 6 20 Traps | -11 -10 -9 -9 -9 -8 -8 -8 -8 -8 -6 -6 -6 -6 -6 -5 -5 -5 -5 -4 -4 -3 -3 -3 -2 -2 -1 ------- Run | Scr Mat Mat Min Exi Min Mat Sto Gar Rec Fac Ext Cet Arc Hub Fac Upp Upp Zhi Pro Fac Res Arm Lab Res Gar Acc Traps Triggered 16 | . 1 . . . . . 1 6 . 1 2 . . . . . . . . . . 2 . 2 . 1 Indirectly . | . . . . . . . . . . . . . . . . . . . . . . . . . . . Trap Hack Attempts . | . . . . . . . . . . . . . . . . . . . . . . . . . . . Triggered . | . . . . . . . . . . . . . . . . . . . . . . . . . . . Disarmed . | . . . . . . . . . . . . . . . . . . . . . . . . . . . Reprogrammed . | . . . . . . . . . . . . . . . . . . . . . . . . . . . Reused . | . . . . . . . . . . . . . . . . . . . . . . . . . . . Traps Extracted . | . . . . . . . . . . . . . . . . . . . . . . . . . . . Installed . | . . . . . . . . . . . . . . . . . . . . . . . . . . . Triggered . | . . . . . . . . . . . . . . . . . . . . . . . . . . . Machines | -11 -10 -9 -9 -9 -8 -8 -8 -8 -8 -6 -6 -6 -6 -6 -5 -5 -5 -5 -4 -4 -3 -3 -3 -2 -2 -1 ---------- Run | Scr Mat Mat Min Exi Min Mat Sto Gar Rec Fac Ext Cet Arc Hub Fac Upp Upp Zhi Pro Fac Res Arm Lab Res Gar Acc Machines Disabled 58 | . . . . . . . 2 1 4 5 3 1 3 19 4 . . . . 2 2 3 . 9 . . Max in Single Turn 10 | . . . . . . . 1 1 1 1 1 1 1 10 4 . . . . . 1 2 . 1 . . Garrison Access 5 | . . . . . . . . . . . . . . 1 2 . . . . . 1 . . . . 1 Garrison Relay 1 | . . . . . . . . 1 . . . . . . . . . . . . . . . . . . Network Hub 2 | . . . . . . . . . . . . . . 2 . . . . . . . . . . . . Energy Cycler 1 | . . . . . . . . . . . . . . . . . . . . . . 1 . . . . Machines Sabotaged . | . . . . . . . . . . . . . . . . . . . . . . . . . . . Garrisons Compromised . | . . . . . . . . . . . . . . . . . . . . . . . . . . . Overloaded Fab Kills . | . . . . . . . . . . . . . . . . . . . . . . . . . . . Fab Network Shutdowns . | . . . . . . . . . . . . . . . . . . . . . . . . . . . Hacking | -11 -10 -9 -9 -9 -8 -8 -8 -8 -8 -6 -6 -6 -6 -6 -5 -5 -5 -5 -4 -4 -3 -3 -3 -2 -2 -1 --------- Run | Scr Mat Mat Min Exi Min Mat Sto Gar Rec Fac Ext Cet Arc Hub Fac Upp Upp Zhi Pro Fac Res Arm Lab Res Gar Acc Machines Accessed 57 | . 1 1 . 1 . 1 6 . . 4 11 4 . 2 5 . . 4 . 6 3 3 . 2 . 3 Terminals 41 | . 1 1 . . . 1 5 . . 4 11 4 . 2 1 . . . . 3 2 3 . 1 . 2 Fabricators 3 | . . . . . . . . . . . . . . . 2 . . . . 1 . . . . . . Repair Stations 1 | . . . . . . . . . . . . . . . . . . . . 1 . . . . . . Recycling Units 1 | . . . . . . . . . . . . . . . . . . . . 1 . . . . . . Scanalyzers . | . . . . . . . . . . . . . . . . . . . . . . . . . . . Garrison Access 6 | . . . . . . . 1 . . . . . . . 2 . . . . . 1 . . 1 . 1 Total Hacks 193 | . 2 1 . 1 . 4 16 . . 19 36 13 . 5 12 . . 17 . 33 19 5 . 5 . 5 Successful 103 | . 1 1 . 1 . 1 13 . . 11 18 4 . 2 6 . . 17 . 18 7 . . 2 . 1 Failed 89 | . 1 . . . . 3 3 . . 8 18 9 . 3 6 . . . . 14 12 5 . 3 . 4 Catastrophic 18 | . 1 . . . . 1 . . . . 3 3 . 1 . . . . . 2 2 4 . . . 1 Database Lockouts 1 | . . . . . . . . . . . . . . . . . . . . 1 . . . . . . Manual 82 | . 2 1 . 1 . 4 11 . . 7 21 13 . 2 . . . . . 20 . . . . . . Terminals 153 | . 2 1 . . . 4 15 . . 19 36 13 . 5 5 . . . . 22 18 5 . 4 . 4 Fabricators 10 | . . . . . . . . . . . . . . . 4 . . . . 6 . . . . . . Repair Stations 4 | . . . . . . . . . . . . . . . . . . . . 4 . . . . . . Recycling Units 1 | . . . . . . . . . . . . . . . . . . . . 1 . . . . . . Scanalyzers . | . . . . . . . . . . . . . . . . . . . . . . . . . . . Garrison Access 7 | . . . . . . . 1 . . . . . . . 3 . . . . . 1 . . 1 . 1 Terminal Hacks 72 | . 1 1 . 1 . 1 8 . . 7 15 3 . 1 1 . . 17 . 9 6 . . 1 . . Record 5 | . . . . . . . . . . . . . . . . . . 5 . . . . . . . . Part Schematic 8 | . . . . . . . 2 . . 1 . . . . . . . 4 . . . . . 1 . . Robot Analysis 8 | . . . . . . . . . . . . . . . . . . 4 . 4 . . . . . . Prototype ID Bank 5 | . . . . . . . . . . . . . . . . . . 4 . . 1 . . . . . Open Door 10 | . . . . . . . . . . 1 8 1 . . . . . . . . . . . . . . Level Access Points 2 | . . . . . . . 1 . . . . . . . . . . . . 1 . . . . . . Branch Access Points 6 | . 1 1 . . . 1 . . . . . . . . 1 . . . . 1 1 . . . . . Machine Index 1 | . . . . . . . . . . . . . . . . . . . . 1 . . . . . . Terminal Index 2 | . . . . . . . 1 . . . 1 . . . . . . . . . . . . . . . Unreport Threat 15 | . . . . . . . 1 . . 4 4 2 . 1 . . . . . 1 2 . . . . . Locate Traps 4 | . . . . . . . 2 . . . 2 . . . . . . . . . . . . . . . Recall Investigation 1 | . . . . . . . . . . . . . . . . . . . . 1 . . . . . . Hauler Manifests 3 | . . . . . . . 1 . . 1 . . . . . . . . . . 1 . . . . . Zone Layout 1 | . . . . . . . . . . . . . . . . . . . . . 1 . . . . . EX-Prototype ID Bank 1 | . . . . 1 . . . . . . . . . . . . . . . . . . . . . . Fabricator Hacks 4 | . . . . . . . . . . . . . . . 2 . . . . 2 . . . . . . Load Schematic 2 | . . . . . . . . . . . . . . . 1 . . . . 1 . . . . . . Build 2 | . . . . . . . . . . . . . . . 1 . . . . 1 . . . . . . Repair Station Hacks 3 | . . . . . . . . . . . . . . . . . . . . 3 . . . . . . Scan Component 1 | . . . . . . . . . . . . . . . . . . . . 1 . . . . . . Repair 1 | . . . . . . . . . . . . . . . . . . . . 1 . . . . . . Refit 1 | . . . . . . . . . . . . . . . . . . . . 1 . . . . . . Recycling Unit Hacks 1 | . . . . . . . . . . . . . . . . . . . . 1 . . . . . . Retrieve Components 1 | . . . . . . . . . . . . . . . . . . . . 1 . . . . . . Scanalyzer . | . . . . . . . . . . . . . . . . . . . . . . . . . . . Garrison Access Hacks 7 | . . . . . . . 1 . . . . . . . 3 . . . . . 1 . . 1 . 1 Unlock Access 2 | . . . . . . . 1 . . . . . . . . . . . . . . . . 1 . . Seal Access 4 | . . . . . . . . . . . . . . . 2 . . . . . 1 . . . . 1 Coupler Status 1 | . . . . . . . . . . . . . . . 1 . . . . . . . . . . . Unauthorized Hacks 40 | . . . . . . . 11 . . 9 8 3 . 2 . . . . . 7 . . . . . . Terminals 16 | . . . . . . . 4 . . 4 3 1 . 1 . . . . . 3 . . . . . . Assimilate 3 | . . . . . . . . . . 1 . . . . . . . . . 2 . . . . . . Botnet 10 | . . . . . . . 2 . . 2 3 1 . 1 . . . . . 1 . . . . . . Disrupt 2 | . . . . . . . 2 . . . . . . . . . . . . . . . . . . . Operators 1 | . . . . . . . . . . 1 . . . . . . . . . . . . . . . . Fabricators . | . . . . . . . . . . . . . . . . . . . . . . . . . . . Repair Stations . | . . . . . . . . . . . . . . . . . . . . . . . . . . . Recycling Units . | . . . . . . . . . . . . . . . . . . . . . . . . . . . Scanalyzers . | . . . . . . . . . . . . . . . . . . . . . . . . . . . Garrison Access . | . . . . . . . . . . . . . . . . . . . . . . . . . . . Data Cores Recovered . | . . . . . . . . . . . . . . . . . . . . . . . . . . . Used . | . . . . . . . . . . . . . . . . . . . . . . . . . . . Hacking Detections 40 | . . . . . . 1 4 . . 3 10 4 . 2 4 . . . . 4 2 3 . 1 . 2 Full Trace Events 3 | . . . . . . . . . . 1 1 . . 1 . . . . . . . . . . . . Feedback Events . | . . . . . . . . . . . . . . . . . . . . . . . . . . . Feedback Blocked . | . . . . . . . . . . . . . . . . . . . . . . . . . . . Robot Schematics Acquired . | . . . . . . . . . . . . . . . . . . . . . . . . . . . Robots Built . | . . . . . . . . . . . . . . . . . . . . . . . . . . . Matter . | . . . . . . . . . . . . . . . . . . . . . . . . . . . Time . | . . . . . . . . . . . . . . . . . . . . . . . . . . . Total Robot Build Rating . | . . . . . . . . . . . . . . . . . . . . . . . . . . . Part Schematics Acquired 8 | . . . . . . . 2 . . 1 . . . . . . . 4 . . . . . 1 . . Parts Built 3 | . . . . . . . . . . . . . . . 2 . . . . 1 . . . . . . Matter 585 | . . . . . . . . . . . . . . . 234 . . . . 351 . . . . . . Time 210 | . . . . . . . . . . . . . . . 117 . . . . 93 . . . . . . Total Part Build Rating 21 | . . . . . . . . . . . . . . . 14 . . . . 7 . . . . . . Parts Repaired 1 | . . . . . . . . . . . . . . . . . . . . 1 . . . . . . Time 8 | . . . . . . . . . . . . . . . . . . . . 8 . . . . . . Parts Recycled . | . . . . . . . . . . . . . . . . . . . . . . . . . . . Recycled Matter . | . . . . . . . . . . . . . . . . . . . . . . . . . . . Retrieved Matter . | . . . . . . . . . . . . . . . . . . . . . . . . . . . Retrieved Components 1 | . . . . . . . . . . . . . . . . . . . . 1 . . . . . . Parts Scanalyzed . | . . . . . . . . . . . . . . . . . . . . . . . . . . . Part Schematics Acquired . | . . . . . . . . . . . . . . . . . . . . . . . . . . . Parts Damaged . | . . . . . . . . . . . . . . . . . . . . . . . . . . . Bothacking | -11 -10 -9 -9 -9 -8 -8 -8 -8 -8 -6 -6 -6 -6 -6 -5 -5 -5 -5 -4 -4 -3 -3 -3 -2 -2 -1 ------------ Run | Scr Mat Mat Min Exi Min Mat Sto Gar Rec Fac Ext Cet Arc Hub Fac Upp Upp Zhi Pro Fac Res Arm Lab Res Gar Acc Used RIF Installer 2 | . . . . . . . . 1 . . . . . . . . . . . . . . . . 1 . Structural Interface 1 | . . . . . . . . . . . . . . . . . . . . . . . . . 1 . Robots Hacked 5 | . . . . . . . . . . 3 . . . . . . . . . . . . . . 1 1 Non-combat 1 | . . . . . . . . . . . . . . . . . . . . . . . . . . 1 Combat 4 | . . . . . . . . . . 3 . . . . . . . . . . . . . . 1 . Robot Hacks Applied 6 | . . . . . . . . . . 4 . . . . . . . . . . . . . . 1 1 no_distress 1 | . . . . . . . . . . . . . . . . . . . . . . . . . . 1 scatter_targeting 1 | . . . . . . . . . . 1 . . . . . . . . . . . . . . . . overload_power 2 | . . . . . . . . . . 2 . . . . . . . . . . . . . . . . overwrite_iff 1 | . . . . . . . . . . 1 . . . . . . . . . . . . . . . . streamctrl_high 1 | . . . . . . . . . . . . . . . . . . . . . . . . . 1 . Relay Couplers Released 15 | . . . . . . . . 4 . . . . . 2 2 . . . . . 4 . . 3 . . Machine Destruction 8 | . . . . . . . . 4 . . . . . 2 2 . . . . . . . . . . . Programmers 7 | . . . . . . . . . . . . . . . . . . . . . 4 . . 3 . . Attached 2 | . . . . . . . . . . 1 . . . . . . . . . . . . . . 1 . Robots Rewired 20 | . . . . . . . . . . . 12 . . . . 2 . . . . . . . . 6 . Allies Hacked . | . . . . . . . . . . . . . . . . . . . . . . . . . . . Hacks Repelled . | . . . . . . . . . . . . . . . . . . . . . . . . . . . Allies | -11 -10 -9 -9 -9 -8 -8 -8 -8 -8 -6 -6 -6 -6 -6 -5 -5 -5 -5 -4 -4 -3 -3 -3 -2 -2 -1 -------- Run | Scr Mat Mat Min Exi Min Mat Sto Gar Rec Fac Ext Cet Arc Hub Fac Upp Upp Zhi Pro Fac Res Arm Lab Res Gar Acc Total Allies 44 | . . . . . . . . . . 2 26 5 . . . 2 . . . 2 . . . . 7 . Largest Group 10 | . . . . . . . . . . 1 10 10 6 4 . 2 2 . . 2 . . . . 5 . Highest-Rated Group 626 | . . . . . . . . . . 47 412 626 603 376 . 59 59 . . 20 . . . . 147 . Highest-Rated Ally 156 | . . . . . . . . . . 47 156 156 133 94 . 30 30 . . 10 . . . . 147 . Total Orders 32 | . . . . . . . . . . 9 . 1 . 1 . . . . . 12 . . . . 9 . STAY 6 | . . . . . . . . . . . . . . 1 . . . . . 2 . . . . 3 . GOTO 14 | . . . . . . . . . . 6 . 1 . . . . . . . 3 . . . . 4 . FOLLOW 11 | . . . . . . . . . . 3 . . . . . . . . . 6 . . . . 2 . RETURN 1 | . . . . . . . . . . . . . . . . . . . . 1 . . . . . . Ally Attacks 494 | . . . . . 3 . . . . . 188 85 9 75 . . 27 . . 47 22 . . . 38 . Total Damage 12409 | . . . . . 181 . . . . . 3752 2959 230 2824 . . 442 . . 859 370 . . . 792 . Kills 76 | . . . . . 3 . . . . . 27 15 1 19 . . 4 . . 2 3 . . . 2 . Allies Corrupted 2 | . . . . . . . . . . . . 1 . 1 . . . . . . . . . . . . Allies Melted 2 | . . . . . . . . . . . 1 1 . . . . . . . . . . . . . . Turrets Deployed 3 | . . . . . 1 . . . . . . . . 2 . . . . . . . . . . . . Intel | -11 -10 -9 -9 -9 -8 -8 -8 -8 -8 -6 -6 -6 -6 -6 -5 -5 -5 -5 -4 -4 -3 -3 -3 -2 -2 -1 ------- Run | Scr Mat Mat Min Exi Min Mat Sto Gar Rec Fac Ext Cet Arc Hub Fac Upp Upp Zhi Pro Fac Res Arm Lab Res Gar Acc Robot Analysis Total 8 | . . . . . . . . . . . . . . . . . . 4 . 4 . . . . . . Derelict Logs Recovered 2 | . . . . . . . . . . . . . . . . 1 1 . . . . . . . . . Drone Launches 2 | . . . . . . . . . . . . . . . . . . . . 2 . . . . . . Drone Recoveries . | . . . . . . . . . . . . . . . . . . . . . . . . . . . Exploration | -11 -10 -9 -9 -9 -8 -8 -8 -8 -8 -6 -6 -6 -6 -6 -5 -5 -5 -5 -4 -4 -3 -3 -3 -2 -2 -1 ------------- Run | Scr Mat Mat Min Exi Min Mat Sto Gar Rec Fac Ext Cet Arc Hub Fac Upp Upp Zhi Pro Fac Res Arm Lab Res Gar Acc Turns Passed 17809 | 52 442 90 76 322 270 134 1004 701 241 1128 985 498 117 843 1124 830 859 405 123 663 955 791 20 1452 1037 2647 Spaces Moved 8572 | 40 323 81 140 275 203 73 390 322 120 495 476 211 54 315 463 424 530 192 203 433 491 348 14 655 321 980 Core 104 | 1 . 26 7 . . . . . . . . . . . . . . . . . . . . . . 70 Treads 4356 | . . 3 . . . . 340 322 120 366 13 211 54 315 463 424 117 . . . 152 348 14 655 156 283 Legs 1021 | . . . . . . . . . . . . . . . . . . . . . 229 . . . 165 627 Wheels 1145 | 39 323 52 . . 16 73 50 . . 129 463 . . . . . . . . . . . . . . . Hover 1351 | . . . . . . . . . . . . . . . . . 413 192 203 433 110 . . . . . Flight 595 | . . . 133 275 187 . . . . . . . . . . . . . . . . . . . . . Fastest Speed 35 | 50 90 50 37 37 90 90 110 165 165 110 120 160 180 160 160 180 76 42 45 35 92 145 150 145 118 50 Average Speed 136 | 90 92 95 38 114 114 93 157 165 165 160 135 181 180 179 179 180 121 98 45 68 137 150 150 147 144 135 Slowest Speed 300 | 100 110 300 100 197 117 110 165 165 165 205 220 220 180 180 180 180 180 170 45 92 176 170 150 165 220 250 Overloaded Moves . | . . . . . . . . . . . . . . . . . . . . . . . . . . . Propulsion Burnouts . | . . . . . . . . . . . . . . . . . . . . . . . . . . . Robots Hopped 3 | . . . . . 3 . . . . . . . . . . . . . . . . . . . . . Cave-ins Triggered . | . . . . . . . . . . . . . . . . . . . . . . . . . . . Teleports 1 | . . . . . . . . . . . . . . . . . . . . . . 1 . . . . Exploration Rate (%) 37 | 4 27 19 29 62 50 8 67 62 49 12 61 79 69 36 19 62 71 60 43 10 20 28 5 14 32 18 Regions Visited 26 Branch Regions 15 Pre-discovered Areas 3 | . . . . . . . . . . . . . . . . . . 3 . . . . . . . . Known Exits Taken 7 | . . 1 . . . 1 1 . . . . . . . 1 . . . . 1 1 . . 1 . . Unknown Exits Taken 17 | 1 1 . 1 1 1 . . . 1 1 1 1 1 1 . 1 1 1 1 . . 1 1 . . . Scrap Searched 7 | . . . 2 . . . . . . . . . . . . 2 3 . . . . . . . . . Spaces Dug 50 | . . . . . . . 3 . 3 4 12 . . . 2 . 2 . 3 2 2 7 . . 1 9 Terrain Destroyed 904 | . 2 7 . . . . 3 21 96 28 12 13 2 423 92 . 5 . 3 6 4 18 . 120 26 23 Melee 47 | . . . . . . . 3 . . 4 12 . . . 2 . 2 . 3 2 2 7 . . 1 9 Projectile 60 | . . . . . . . . . . 2 . . 2 28 2 . 3 . . 4 2 . . 2 1 14 AOE 797 | . 2 7 . . . . . 21 96 22 . 13 . 395 88 . . . . . . 11 . 118 24 . Actions | -11 -10 -9 -9 -9 -8 -8 -8 -8 -8 -6 -6 -6 -6 -6 -5 -5 -5 -5 -4 -4 -3 -3 -3 -2 -2 -1 --------- Run | Scr Mat Mat Min Exi Min Mat Sto Gar Rec Fac Ext Cet Arc Hub Fac Upp Upp Zhi Pro Fac Res Arm Lab Res Gar Acc Total 12598 | 52 392 91 156 280 218 138 618 429 142 714 728 291 67 476 659 463 676 393 229 734 619 587 13 956 791 1686 Wait 2023 | 3 10 . . . . 59 99 35 . 97 74 38 7 62 126 12 78 170 24 225 10 195 . 169 294 236 Move 8542 | 39 322 80 139 274 196 72 390 321 119 494 475 210 53 314 462 423 529 191 202 432 491 347 13 654 320 980 Hop 3 | . . . . . 3 . . . . . . . . . . . . . . . . . . . . . Pick Up 125 | 4 6 1 . 4 2 4 17 6 . 12 6 4 . 7 7 . 5 4 . 7 5 2 . 6 2 14 Fast Attach 208 | 6 1 . 7 . 1 . 5 . . 9 5 6 2 11 4 1 5 6 . 16 23 9 . 13 19 59 Attach 70 | . 5 3 . 1 1 . 5 5 1 5 3 1 . 5 2 1 7 3 . . 4 1 . 2 2 13 Detach 28 | . . 1 . . . . . . . 2 . 1 . 4 . . 4 2 . 1 5 . . 4 1 3 Swap 135 | . 2 . . 1 . 2 5 7 1 11 3 2 . 3 1 1 . 5 . 4 7 9 . 24 7 40 Drop 148 | . 2 3 . . 3 1 9 . . 10 5 11 2 13 4 1 1 4 . 10 16 12 . 13 4 24 Fire 942 | . 44 3 2 . 12 . 70 45 21 62 30 18 3 57 50 12 35 . . 23 54 5 . 70 67 259 Melee 159 | . . . . . . . 18 1 . 12 18 . . . 3 . 12 8 3 15 4 7 . . 4 54 Ram 9 | . . . 8 . . . . . . . . . . . . . . . . . . . . . . 1 Kick 2 | . . . . . . . . . . . . . . . . . . . . . . . . . . 2 Crush 2 | . . . . . . . . . . . . . . . . . . . . . . . . 1 . 1 Escape Stasis 17 | . . . . . . . . 9 . . 8 . . . . . . . . . . . . . . . Rewire 184 | . . . . . . . . . . . 101 . . . . 12 . . . . . . . . 71 . Trap . | . . . . . . . . . . . . . . . . . . . . . . . . . . . Miscellaneous 1 | . . . . . . . . . . . . . . . . . . . . 1 . . . . . . Route ------- -11/Scrapyard -10/Materials (discovered 3 exits: *Mat / Min x2) -9/Materials (discovered 2 exits: *Min x2) -9/Mines -9/Exiles -8/Mines -8/Materials (discovered 2 exits: *Sto x2) -8/Storage (discovered 2 exits: *Fac / Gar) -8/Garrison (discovered 2 exits: [*Rec x2]) -8/Recycling -6/Factory -6/Extension (discovered 2 exits: *Fac / *Cet) -6/Cetus (discovered 2 exits: *Fac / [*Arc]) -6/Archives (discovered 2 exits: *Hub x2) -6/Hub_04(d) -5/Factory (discovered 2 exits: *Upp x2) -5/Upper Caves -5/Upper Caves (discovered 2 exits: *Fac / *Zhi) -5/Zhirov -4/Proximity Caves -4/Factory (discovered 6 exits: *Res x4 / Upp x2) -3/Research (discovered 3 exits: *Arm / Tes x2) -3/Armory (discovered 2 exits: Res / [*Lab]) -3/Lab -2/Research -2/Garrison -1/Access History --------- Turn | Location | Event 22 | -11/Scrapyard | Discovered new exit (range 16) 53 | -11/Scrapyard | Entered Materials 145 | -10/Materials | Identified exit to Mines 195 | -10/Materials | Discovered new exit (range 13) 301 | -10/Materials | Build established: Mutant 418 | -10/Materials | Core integrity fell below 50% 475 | -10/Materials | Lost 4 parts (1p1n2w) 495 | -10/Materials | Entered another Materials area 495 | -9/Materials | Evolved 2 slots: Utility x2 498 | -9/Materials | Identified exit to Mines 576 | -9/Materials | Core integrity fell below 50% 585 | -9/Materials | Entered Mines 588 | -9/Mines | Core integrity fell below 20% 593 | -9/Mines | Lost 4 parts (1p2n1w) 660 | -9/Mines | Deemed a non-threat by the Exiles lab entrance 660 | -9/Mines | Discovered new exit (range 5) 661 | -9/Mines | Entered Exiles 671 | -9/Exiles | Met 8R-AWN 677 | -9/Exiles | Met EX-HEX 687 | -9/Exiles | Met EX-BIN 693 | -9/Exiles | Aligned with FarCom system 694 | -9/Exiles | Given EX-Vault access code 707 | -9/Exiles | Opened EX-Vault 711 | -9/Exiles | Found Deploy-a-Sentry 714 | -9/Exiles | Found Deploy-a-Sentry 717 | -9/Exiles | Found Deploy-a-Sentry 759 | -9/Exiles | Warned to stay clear of 0b10 Research branches 818 | -9/Exiles | Met EX-DEC 889 | -9/Exiles | Discovered new exit (range 14) 900 | -9/Exiles | Build established: Scavenger-Mutant 983 | -9/Exiles | Left Exiles lab with Deploy-a-Sentry 983 | -9/Exiles | Entered Mines 985 | -8/Mines | DAS Turret deployed 1243 | -8/Mines | Discovered new exit (range 11) 1253 | -8/Mines | Entered Materials 1253 | -8/Materials | Evolved 2 slots: Weapon x2 1355 | -8/Materials | Discovered new exit (range 8) 1382 | -8/Materials | Identified exit to Storage 1387 | -8/Materials | Entered Storage 1528 | -8/Storage | Lost 4 parts (1p1n2w) 1697 | -8/Storage | Identified exit to Factory 2143 | -8/Storage | Garrison activated, responded to threat 2391 | -8/Storage | Identified exit to Garrison 2391 | -8/Storage | Entered Garrison 2406 | -8/Garrison | Triggered checkpoint 2559 | -8/Garrison | Triggered checkpoint 2631 | -8/Garrison | Triggered checkpoint 2658 | -8/Garrison | Destroyed 7 combat bots 2732 | -8/Garrison | Discovered new exit (range 14) 2782 | -8/Garrison | Triggered checkpoint 2808 | -8/Garrison | Garrison Relay disabled 2994 | -8/Garrison | Triggered checkpoint 3049 | -8/Garrison | Discovered new exit (range 11) 3081 | -8/Garrison | Installed Relay Interface Framework 3092 | -8/Garrison | Entered Recycling 3097 | -8/Recycling | Spotter reported a threat 3149 | -8/Recycling | Build established: Skirmisher 3176 | -8/Recycling | Spotter reported a threat 3203 | -8/Recycling | Spotter reported a threat 3203 | -8/Recycling | Spotter reported a threat 3238 | -8/Recycling | Spotter reported a threat 3240 | -8/Recycling | Spotter reported a threat 3249 | -8/Recycling | Spotter reported a threat 3256 | -8/Recycling | Spotter reported a threat 3273 | -8/Recycling | Spotter reported a threat 3273 | -8/Recycling | Spotter reported a threat 3319 | -8/Recycling | Spotter reported a threat 3320 | -8/Recycling | Spotter reported a threat 3320 | -8/Recycling | Spotter reported a threat 3321 | -8/Recycling | Discovered new exit (range 8) 3333 | -8/Recycling | Entered Factory 3333 | -6/Factory | Evolved 4 slots: Power x1, Weapon x3 3683 | -6/Factory | First assault squad dispatched 3969 | -6/Factory | Build established: Executioner 4456 | -6/Factory | Discovered new exit (range 6) 4461 | -6/Factory | Entered Extension 4475 | -6/Extension | Disrupted transfer network 4516 | -6/Extension | Rescued a captive Derelict 4517 | -6/Extension | Rescued a captive Derelict 4664 | -6/Extension | Rescued a captive Derelict 4664 | -6/Extension | Rescued a captive Derelict 4677 | -6/Extension | Rescued a captive Derelict 4747 | -6/Extension | Rescued a captive Derelict 4748 | -6/Extension | Rescued a captive Derelict 4811 | -6/Extension | First assault squad dispatched 4932 | -6/Extension | Lost 3 parts (1n2w) 5116 | -6/Extension | Rescued a captive Derelict 5118 | -6/Extension | Rescued a captive Derelict 5148 | -6/Extension | Rescued a captive Derelict 5149 | -6/Extension | Rescued a captive Derelict 5350 | -6/Extension | Rescued A7 5382 | -6/Extension | Rescued a captive Derelict 5383 | -6/Extension | Rescued a captive Derelict 5407 | -6/Extension | Discovered new exit (range 10) 5408 | -6/Extension | Discovered new exit (range 6) 5446 | -6/Extension | Entered Cetus 5446 | -6/Cetus | Accompanied by 10 allies 5451 | -6/Cetus | Acquired a Cetus Manufacturing Module code from A7 5472 | -6/Cetus | Spotted Cetus Guard 5472 | -6/Cetus | Spotted Cetus Guard 5473 | -6/Cetus | Spotted Cetus Guard 5477 | -6/Cetus | Spotted Cetus Guard 5484 | -6/Cetus | Allies destroyed Cetus Guard 5489 | -6/Cetus | Allies destroyed Cetus Guard 5489 | -6/Cetus | Allies destroyed Cetus Guard 5495 | -6/Cetus | Destroyed Cetus Guard 5646 | -6/Cetus | Started Cetus Manufacturing Module 5671 | -6/Cetus | Manufactured an Enhanced Grunt 5696 | -6/Cetus | Manufactured an Enhanced Grunt 5721 | -6/Cetus | Manufactured an Enhanced Grunt 5741 | -6/Cetus | Build established: Scavenger-Executioner 5746 | -6/Cetus | Manufactured an Enhanced Grunt 5748 | -6/Cetus | Escorted A7 to Cetus Mainframe 5771 | -6/Cetus | Manufactured an Enhanced Grunt 5790 | -6/Cetus | Discovered new exit (range 16) 5823 | -6/Cetus | Spotted Cetus Guard 5823 | -6/Cetus | Spotted Cetus Guard 5825 | -6/Cetus | Spotted Cetus Guard 5827 | -6/Cetus | Spotted Cetus Guard 5838 | -6/Cetus | Allies destroyed Cetus Guard 5840 | -6/Cetus | Destroyed Cetus Guard 5844 | -6/Cetus | Allies destroyed Cetus Guard 5846 | -6/Cetus | Allies destroyed Cetus Guard 5857 | -6/Cetus | Discovered new exit (range 15) 5869 | -6/Cetus | Met Revision 17 5944 | -6/Cetus | Entered Archives 5944 | -6/Archives | Accompanied by 6 allies 5949 | -6/Archives | Received a hacking code to weaken MAIN.C 6005 | -6/Archives | Discovered new exit (range 15) 6029 | -6/Archives | Discovered new exit (range 15) 6061 | -6/Archives | Entered Hub_04(d) 6061 | -6/Hub_04(d) | Accompanied by 4 allies 6230 | -6/Hub_04(d) | Garrison activated, responded to threat 6540 | -6/Hub_04(d) | Network Hub disabled 6555 | -6/Hub_04(d) | Network Hub disabled 6587 | -6/Hub_04(d) | DAS Turret deployed 6589 | -6/Hub_04(d) | DAS Turret deployed 6594 | -6/Hub_04(d) | Spotted Lightning 6597 | -6/Hub_04(d) | Spotted Lightning 6599 | -6/Hub_04(d) | Spotted Lightning 6607 | -6/Hub_04(d) | Spotted Lightning 6608 | -6/Hub_04(d) | Destroyed Lightning 6614 | -6/Hub_04(d) | Spotted Lightning 6615 | -6/Hub_04(d) | Destroyed Lightning 6617 | -6/Hub_04(d) | System corruption reached 10% 6617 | -6/Hub_04(d) | Allies destroyed Lightning 6618 | -6/Hub_04(d) | Spotted Lightning 6632 | -6/Hub_04(d) | Destroyed Lightning 6635 | -6/Hub_04(d) | Destroyed Lightning 6669 | -6/Hub_04(d) | Destroyed Lightning 6695 | -6/Hub_04(d) | Lost 3 parts (1n1u1w) 6703 | -6/Hub_04(d) | Found Prototype Device 6703 | -6/Hub_04(d) | Identified Exp. Phase Shifter 6707 | -6/Hub_04(d) | Found Prototype Processor 6709 | -6/Hub_04(d) | Found Prototype Device 6719 | -6/Hub_04(d) | Found Prototype Energy Cannon 6745 | -6/Hub_04(d) | Identified EM Dispersion Field 6746 | -6/Hub_04(d) | Identified Exp. Targeting Computer 6751 | -6/Hub_04(d) | Found EM Dispersion Field 6761 | -6/Hub_04(d) | First assault squad dispatched 6872 | -6/Hub_04(d) | Discovered new exit (range 16) 6904 | -6/Hub_04(d) | Entered Factory 6904 | -5/Factory | Evolved 2 slots: Propulsion x2 7131 | -5/Factory | Identified exit to Upper Caves 7204 | -5/Factory | First assault squad dispatched 7269 | -5/Factory | Fabricated Adv. Hardlight Generator (x2) 7797 | -5/Factory | Identified EMDS 8028 | -5/Factory | Entered Upper Caves 8324 | -5/Upper Caves | Learned Factory interactive machine intel 8621 | -5/Upper Caves | Attracted the attention of an 0b10 outpost 8669 | -5/Upper Caves | Destroyed 7 combat bots 8830 | -5/Upper Caves | Discovered new exit (range 9) 8858 | -5/Upper Caves | Entered another Upper Caves area 8858 | -5/Upper Caves | Accompanied by 2 allies 8886 | -5/Upper Caves | Attracted the attention of an 0b10 checkpoint 8932 | -5/Upper Caves | Encountered a Warlord checkpoint 8934 | -5/Upper Caves | Discovered new exit (range 11) 8956 | -5/Upper Caves | Spotted B-75 Beast 8992 | -5/Upper Caves | Destroyed B-75 Beast 9005 | -5/Upper Caves | Lost 4 parts (1p3w) 9210 | -5/Upper Caves | Lost 8 parts (1p3n1u3w) 9234 | -5/Upper Caves | Core integrity fell below 50% 9237 | -5/Upper Caves | Learned location of 1 exit from Factory 9441 | -5/Upper Caves | Build established: Mutant 9633 | -5/Upper Caves | Discovered new exit (range 14) 9717 | -5/Upper Caves | Entered Zhirov 9717 | -5/Zhirov | Discovered new exit (range 3) 9747 | -5/Zhirov | Met Zhirov 9780 | -5/Zhirov | Learned location of Quarantine (-2) 9780 | -5/Zhirov | Learned location of Testing (-3) 9780 | -5/Zhirov | Learned location of Command (-1) 9789 | -5/Zhirov | Zhirov requested help retrieving the SGEMP Prototype 9812 | -5/Zhirov | Found Alien Artifact 9812 | -5/Zhirov | Identified Integrated Reactor 9812 | -5/Zhirov | Installed Integrated Reactor, increased core energy generation (+2%) 9836 | -5/Zhirov | Found Alien Artifact 10122 | -5/Zhirov | Entered Proximity Caves 10219 | -4/Proximity Caves | Discovered new exit (range 19) 10245 | -4/Proximity Caves | Entered Factory 10245 | -4/Factory | Evolved 2 slots: Power x1, Propulsion x1 10246 | -4/Factory | Identified exit to Research 10247 | -4/Factory | Loaded intel: 46 interactive machine locations 10265 | -4/Factory | Repaired Lrg. Storage Unit 10461 | -4/Factory | Identified exit to Upper Caves 10475 | -4/Factory | Central database locked down 10551 | -4/Factory | Build established: Generator-Mutant 10687 | -4/Factory | Fabricated Assault Drone Bay (x1) 10764 | -4/Factory | P-70 Sage assimilated allied Technician 7a 10908 | -4/Factory | Entered Research 10908 | -3/Research | Accompanied by 1 ally 10908 | -3/Research | Evolved 2 slots: Propulsion x1, Weapon x1 11052 | -3/Research | Lost 3 parts (1n2w) 11108 | -3/Research | Revision forces began assault on 0b10 11143 | -3/Research | Lost 5 parts (1p1n1u2w) 11174 | -3/Research | Met up with Revision 17++ 11293 | -3/Research | Identified exit to Armory 11293 | -3/Research | Identified exit to Testing 11608 | -3/Research | Research terminal network offline 11620 | -3/Research | Build established: Scavenger-Assassin 11863 | -3/Research | Entered Armory 12550 | -3/Armory | Identified Transdimensional Reconstructor 12550 | -3/Armory | Warped through subspace to slip node 12550 | -3/Armory | Discovered new exit (range 1) 12570 | -3/Armory | Discovered new exit (range 14) 12654 | -3/Armory | Entered Lab 12654 | -3/Lab | Discovered new exit (range 9) 12674 | -3/Lab | Entered Research 12674 | -2/Research | Evolved 2 slots: Weapon x2 12689 | -2/Research | Identified exit to Garrison 12859 | -2/Research | Found Prototype Device 12859 | -2/Research | Identified Adv. Kinecellerator 13101 | -2/Research | Build established: Scavenger-Executioner 13712 | -2/Research | Found Prototype Device 13713 | -2/Research | Identified Exp. Force Field 13717 | -2/Research | Found Exp. Force Field 14126 | -2/Research | Entered Garrison 14380 | -2/Garrison | Lost 7 parts (1p6w) 14534 | -2/Garrison | Triggered checkpoint 14726 | -2/Garrison | Lost 6 parts (2n4w) 14824 | -2/Garrison | Triggered checkpoint 14864 | -2/Garrison | Spotted B-90 Cyclops 14919 | -2/Garrison | Hijacked Cyclops 9a control node with streamctrl_high 14948 | -2/Garrison | Lost 3 parts (3w) 15042 | -2/Garrison | Destroyed Cyclops 9a 15064 | -2/Garrison | Build established: Scavenger-Mutant 15092 | -2/Garrison | Discovered new exit (range 12) 15112 | -2/Garrison | Expanded RIF knowledge: Structural Interface 15163 | -2/Garrison | Entered Access 15163 | -1/Access | Evolved 2 slots: Propulsion x2 15404 | -1/Access | Build established: Scavenger-Assassin 15552 | -1/Access | System corruption reached 10% 15604 | -1/Access | Lost 8 parts (2p1n5w) 15718 | -1/Access | Lost 5 parts (3n2w) 16354 | -1/Access | Lost 10 parts (4n6w) 16913 | -1/Access | First assault squad dispatched 17463 | -1/Access | Found Prototype Device 17463 | -1/Access | Identified Thermal Barrier 17673 | -1/Access | Core integrity fell below 50% 17704 | -1/Access | System corruption reached 30% 17775 | -1/Access | Released all parts (3) 17777 | -1/Access | Core integrity fell below 20% 17804 | -1/Access | Lost 34 parts (5p8n6u15w) 17810 | -1/Access | Destroyed by G-73 Enforcer with Phase Gun Last Messages --------------- 17756_ R-10 Processor collects Adv. Remote Datajack. 17759_ K-01 Serf collects debris. 17759_ Gamma Rifle destroyed. 17762_ K-01 Serf collects debris. 17762_ G-73 Enforcer IFF system glitched. 17763_ ALERT: Rogue bot located, Programmers report to Access Zone 4Q. 17763_ G-73 Enforcer misfires. 17763_ K-01 Serf destroyed. 17764_ Extracted 16 matter. 17766_ Biometal Leg destroyed. 17769_ Acquired Biometal Leg. 17770_ Acquired 10 matter. 17773_ Lgt. Particle Reactor destroyed. 17774_ Acquired KE Penetrator. 17775_ Released Biometal Leg. 17775_ Released Thermal Barrier. 17775_ Released KE Penetrator. 17775_ Acquired 10 matter. 17789_ System corrupted: Matter fused (-9). 17807_ Slammed into Y-72 Warden. Map ----- +----------------------------------------------------+ | "#######+###""""? ?? ####?#?##??????????????????? | | #######=#?#""""" ? ####?#?#?#?????????????????? | | ######?# ###?"?"" ####???##??????????????????? | | ##?## ###""""" ? ###?###?#??????????????????? | | ##### #?# ? ?? ###?##??##?????????????????? | | ##?##=#?# ? ???#??##???????????????????? | | ###?# #?# ??? ??#?####?????????????????????? | | ##??#=#######+??+?##? ?#?? ?????????????????? | | ##### ####### ?#? ?????????????????? | | " ##??# %% ?+? ??????????????????? | | " #?### #### ??????????????????????? | | #?###%#??? ??#??####? ??????????????????????? | | ##### #?##+########### ##?????????????????????? | | ##### #?# ###?# #??????????????????????? | | ##??#%### ##??# #??????????????????????? | | ########%### " #???# ########???????????????? | | % %% # """ ##### # #???????????????? | | + g """ + gg # #???????????????? | | % # " #####g# #???????????????? | | ########## # #???# Y #???????????????? | | ????#??#g# #??## # #???????????????? | | ??###?## # #???# # #???????????????? | | ???????#g##########???# ########???????????????? | | ??#????# #????#???????# #??????????????????????? | | ??????# #?#?##???????# #??????????????????????? | | ???????# #????????????#@#??????????????????????? | | ?####### #????????????# #??????????????????????? | | +### # ############ ??????????????????????? | | g ??????????????????????? | | i ?????????????g???????? | | = ????????????g????????? | | /### ############ # #???????????g????????? | | !==## ##????????????#######???????????g????????? | | %%!## #???????????????????????????????g????????? | | !*!## #????????????????????????????????????????? | | !| ## #????????????????????????????????????????? | | !==## #????????????????????????????????????????? | | ## #????????????????????????????????????????? | | ## #????????????????????????????????????????? | | ## #????????????????????????????????????????? | | ## #????????????????????????????????????????? | | ##### #????????????????????????????????????????? | | ????# +???????????????s????????????????????????? | | ????# #?????????????s??s???????????????????????? | | ????# #?????????????ss?????????????????????????? | | ????# #????????????????????????????????????????? | | ?????"""?????????????????????????????????????????? | | ?????????????????????????????????????????????????? | | ?????????????????????????????????????????????????? | | ?????????????????????????????????????????????????? | +----------------------------------------------------+ Best States ------------- Heat Dissipation 90 Coolant Potential 50 Energy Generation 73 Energy Capacity 910 Matter Stores 300 Matter Capacity 300 Sight Range 16 Terrain Scan Range 24 Terrain Scan Density 210 Jamming Range 12 Armor Coverage 450 Resistance: TH 50 Resistance: EM 75 Core Shielding 30 Evasion (%) 62 Targeting Accuracy 12 Core Analysis 8 Recoil Reduction 6 Kinecelleration 50 Offensive Hacking 14 Item Schematics ----------------- Hacking Suite | -8/Storage | Hacked Imp. System Shield | -8/Storage | Hacked Imp. Heavy Treads | -6/Factory | Hacked Assault Drone Bay | -5/Zhirov | Free Exp. Heat Sink | -5/Zhirov | Free Exp. Optical Array | -5/Zhirov | Free Imp. Arc Thrower | -5/Zhirov | Free Cmb. Linear Gravjet | -2/Research | Hacked Robot Schematics ------------------ None Fabricated ------------ Adv. Hardlight Generator | x2 | -5/Factory | Preloaded Assault Drone Bay | x1 | -4/Factory Alien Tech Used ----------------- Integrated Reactor Transdimensional Reconstructor Achievements -------------- None Challenges ------------ None Game ------ Seed MagneticHypercooledNanovents Manual? 0 Play Time 03:32:59 Cumulative 681.4 hours Start 2019.11.03 @ 12:12:07 End 2019.11.03 @ 19:27:09 Sessions 3 Manual Loads 0 Difficulty Rogue Special Mode None Game No. 181 Rogue 181 Adventurer 0 Explorer 0 Win Type - Total 30 Types 22/0/2/3/2/0/1 Lore% 96 Gallery% 97 Achievement% 90 Wizard Run 0 Options --------- ASCII 0 Keyboard 1 Movement Numpad Keybinds 0 Fullscreen 1 Font 18/SmallcapsGlow Map View 76x50 Tactical HUD 1 Map Filters NONE Filters NONE Steam 1 RUN: ec1d7c7e-a1ab-4ba2-9109-f6136941394e